bitfinex/quotes_ETHUSD_20260226
["timestamp","ask_amount","ask_price","bid_price","bid_amount"]
[1772073519086,1.625,2052.7,2052.0,0.00219997]
[1772073519380,0.49890003,2052.8,2052.0,0.00219997]
[1772073519576,2.12290003,2053.0,2052.1,0.00219997]
[1772073519779,1.624,2053.0,2052.3,0.00219997]
[1772073520349,0.49890003,2053.0,2052.3,0.00219997]
[1772073521449,0.49890003,2053.0,2052.4,0.00219997]
[1772073521651,0.001,2052.8,2052.4,0.00219997]
[1772073526580,0.49990003,2052.8,2052.4,0.00219997]
[1772073528159,0.49990003,2052.8,2052.3,1.21924549]
[1772073528469,0.49890003,2052.7,2052.3,0.0011]
[1772073529568,0.49890003,2052.7,2052.0,1.21938445]
[1772073529784,0.49835003,2052.5,2052.0,0.0011]
[1772073530664,0.49835003,2052.7,2052.1,0.00329996]
[1772073533687,0.49835003,2052.7,2052.5,0.0011]
[1772073534070,0.49835003,2052.6,2052.0,0.0011]
[1772073534412,0.49835003,2052.6,2052.3,0.0011]
[1772073534899,0.49835003,2052.6,2052.0,0.0011]
[1772073535095,0.49780003,2052.5,2052.0,0.0011]
[1772073536492,0.49780003,2052.3,2052.0,0.0011]
[1772073540036,0.49780003,2052.5,2052.0,0.00549996]
[1772073540522,1.21795112,2052.7,2052.0,0.00549996]
[1772073540523,0.49780003,2052.7,2052.1,0.00439996]
[1772073541039,1.21795375,2052.7,2052.1,0.00439996]
[1772073541200,0.49780003,2052.6,2052.1,0.00439996]
[1772073543503,0.49780003,2052.5,2052.0,0.0011]
[1772073543708,0.49780003,2052.3,2052.0,0.0011]
[1772073546023,0.49780003,2052.2,2052.0,0.0011]
[1772073548825,0.49780003,2052.1,2052.0,0.0011]
[1772073549121,0.49780003,2052.1,2051.8,0.0011]
[1772073550096,0.49780003,2052.1,2051.2,0.00549996]
[1772073551196,1.71606634,2052.1,2051.2,0.00549996]
[1772073551624,0.49725003,2052.0,2051.2,0.00549996]
[1772073552721,0.49725003,2052.2,2051.2,0.00549996]
[1772073554316,1.71549354,2052.2,2051.2,0.00549996]
[1772073554520,0.49725003,2052.1,2051.2,0.00549996]
[1772073556219,1.21824351,2052.2,2051.2,0.00549996]
[1772073556220,0.49725003,2051.9,2051.2,0.00549996]
[1772073556415,0.49725003,2051.7,2051.2,0.00549996]
[1772073557640,1.613,2051.8,2051.2,0.00549996]
[1772073557806,1.7155157,2052.1,2051.3,0.00549995]
[1772073558130,0.49725003,2052.1,2051.3,0.00549995]
[1772073558439,1.71552745,2052.1,2051.4,0.00549995]
[1772073558728,0.49725003,2052.0,2051.4,0.00659995]
[1772073559840,0.49725003,2052.0,2051.4,0.0011]
[1772073560027,0.49725003,2051.9,2051.4,0.0011]
[1772073560630,0.49725003,2051.7,2051.4,0.0011]
[1772073561826,0.49670003,2051.6,2051.1,0.0011]
[1772073562199,0.49670003,2051.6,2050.9,0.00769995]
[1772073562522,1.71537995,2051.4,2050.9,0.0011]
[1772073562721,0.49670003,2051.4,2050.9,0.0011]
[1772073564134,2.10870003,2051.6,2050.9,1.50595921]
[1772073564334,1.612,2051.6,2051.0,0.00659995]
[1772073564510,3.32726185,2051.6,2051.0,1.22551755]
[1772073564705,2.10870003,2051.6,2051.0,1.22551755]
[1772073564905,1.612,2051.6,2051.1,0.00659995]
[1772073565838,0.49670003,2051.8,2051.1,0.00659995]
[1772073566532,1.71514434,2051.8,2051.1,0.00659995]
[1772073567136,0.49670003,2051.7,2051.1,0.00659995]
[1772073568130,0.49670003,2051.7,2051.0,1.2189176]
[1772073568517,0.49670003,2051.5,2050.9,0.0011]
[1772073569110,0.49670003,2051.4,2050.9,0.0011]
[1772073570506,0.49670003,2051.4,2050.5,0.0011]
[1772073570507,0.49615003,2051.2,2050.5,0.0011]
[1772073571129,0.49615003,2051.0,2050.5,0.0011]
[1772073571343,1.21873933,2051.3,2050.5,0.0011]
[1772073571344,0.49615003,2050.8,2050.5,0.0011]
[1772073571544,0.49615003,2050.8,2050.3,0.0011]
[1772073572634,0.49615003,2050.7,2050.3,0.0011]
[1772073575822,0.49615003,2050.5,2050.3,0.0011]
[1772073576418,0.49615003,2050.7,2050.3,0.0011]
[1772073577328,0.49615003,2050.7,2050.0,0.0011]
[1772073578130,0.49560003,2050.5,2050.0,0.0011]
[1772073579744,0.49560003,2050.3,2050.0,0.0011]
[1772073579925,1.21915536,2050.6,2049.8,0.00879995]
[1772073579926,0.49560003,2050.6,2049.8,0.00879995]
[1772073580132,0.49560003,2050.5,2049.9,1.22837163]
[1772073580373,0.49560003,2050.5,2049.9,1.21957168]
[1772073580646,0.49560003,2050.5,2049.8,1.21959037]
[1772073580819,2.10760003,2050.7,2049.9,0.00879995]
[1772073581522,0.49560003,2050.9,2050.2,0.00879995]
[1772073581748,1.611,2051.1,2050.4,0.00879995]
[1772073581972,1.611,2051.1,2050.5,0.00879995]
[1772073582324,1.611,2051.1,2050.6,1.22795531]
[1772073583620,0.001,2050.9,2050.6,1.22795531]
[1772073583855,1.7147007,2051.6,2050.8,0.00779995]
[1772073584020,0.49610003,2051.5,2050.8,0.00779995]
[1772073584838,0.49610003,2051.5,2050.9,1.21897703]
[1772073585144,1.71464147,2051.7,2051.0,0.00779994]
[1772073585528,0.49610003,2051.7,2051.0,0.00779994]
[1772073586347,0.49610003,2051.6,2050.9,1.21897703]
[1772073587059,1.71472055,2051.5,2050.9,1.21897703]
[1772073587356,0.49610003,2051.4,2050.5,1.22027213]
[1772073587533,0.49610003,2051.4,2050.5,1.22807207]
[1772073587735,0.49610003,2051.4,2050.6,0.00779994]
[1772073587952,1.71469648,2051.6,2050.6,0.00779994]
[1772073588154,0.49610003,2051.6,2050.6,0.00779994]
[1772073589554,0.49610003,2051.6,2050.8,0.00779994]
[1772073590643,2.10710003,2051.8,2050.9,0.00779994]
[1772073590844,3.32554356,2051.8,2050.9,0.00779994]
[1772073591139,0.49610003,2051.7,2050.9,0.00779994]
[1772073591342,0.49610003,2051.7,2051.0,1.2189176]
[1772073591533,0.49610003,2051.7,2051.1,0.00779994]
[1772073592439,1.611,2051.8,2051.1,0.00779994]
[1772073592838,2.10710003,2051.8,2051.1,0.00779994]
[1772073593860,1.611,2051.8,2051.3,0.00779994]
[1772073595967,0.001,2051.6,2051.4,1.21867992]
[1772073596146,1.611,2051.8,2051.4,1.21867992]
[1772073600779,0.001,2051.8,2051.5,0.00779994]
[1772073601075,0.001,2052.1,2051.5,0.00779994]
[1772073602266,0.001,2052.1,2051.7,0.00779994]
[1772073602944,0.001,2052.1,2051.8,0.00779994]
[1772073603958,0.001,2052.5,2051.8,0.00779994]
[1772073604182,0.001,2052.5,2052.2,1.21820485]
[1772073604383,0.001,2052.5,2052.1,1.22602244]
[1772073604690,0.50043721,2052.5,2052.1,1.2182225]
[1772073604847,0.001,2052.5,2052.1,1.22602244]
[1772073605296,0.001,2052.5,2052.1,1.21694715]
[1772073605603,0.49943721,2052.7,2052.1,2.43994715]
[1772073605745,0.49943721,2052.7,2052.2,0.00779994]
[1772073605943,0.001,2052.8,2052.2,0.00779994]
[1772073606154,0.001,2052.8,2052.4,0.00779994]
[1772073606383,0.001,2052.8,2052.5,1.21802679]
[1772073607551,0.49943721,2053.2,2052.6,1.5060592]
[1772073607947,0.001,2053.6,2052.7,0.00779994]
[1772073607948,0.49943721,2053.4,2052.7,0.00779994]
[1772073608270,0.49943721,2053.4,2052.8,1.21784879]
[1772073610768,0.50043721,2053.6,2052.9,1.5060592]
[1772073611077,0.49943721,2053.5,2052.6,1.21796745]
[1772073613372,0.49943721,2053.3,2052.6,1.21796745]
[1772073613882,0.49943721,2053.3,2052.5,1.21802628]
[1772073614085,0.49943721,2053.3,2052.3,5.0170053]
[1772073614376,0.49943721,2053.3,2052.3,0.0011]
[1772073615355,0.49943721,2053.1,2052.0,0.0011]
[1772073616151,2.09489381,2053.1,2052.0,0.0011]
[1772073616359,1.21761153,2053.2,2052.0,0.0011]
[1772073616360,0.49943721,2052.7,2052.0,0.0011]
[1772073616553,0.49943721,2052.5,2052.0,0.0011]
[1772073617685,0.49943721,2052.3,2052.0,0.0011]
[1772073619666,0.49943721,2052.3,2051.8,0.0011]
[1772073619667,0.49943721,2052.1,2051.8,0.0011]
[1772073620482,0.49943721,2052.1,2051.2,1.22766696]
[1772073620681,0.49943721,2052.1,2052.0,0.0011]
[1772073620888,0.49943721,2052.1,2051.7,0.0011]
[1772073622060,0.49943721,2051.9,2051.7,0.0011]
[1772073622878,0.49943721,2051.9,2051.1,0.0011]
[1772073624290,0.49943721,2051.7,2051.1,0.0011]
[1772073626696,0.49555003,2051.5,2051.1,0.0011]
[1772073627998,0.49500003,2051.3,2050.6,0.0011]
[1772073628668,0.49500003,2051.2,2050.6,0.01109994]
[1772073628971,0.49500003,2051.2,2050.6,0.0011]
[1772073630599,0.49500003,2051.0,2050.6,0.0011]
[1772073632282,0.49500003,2051.0,2050.8,0.0011]
[1772073633102,1.21885817,2051.1,2050.8,0.0011]
[1772073633103,1.71397706,2050.9,2050.8,0.0011]
[1772073634011,0.49500003,2050.8,2050.6,0.0011]
[1772073634218,0.49500003,2050.6,2050.3,0.0011]
[1772073634434,0.49500003,2050.6,2049.6,1.23082147]
[1772073634711,0.49500003,2050.6,2049.6,1.22082153]
[1772073634878,0.49500003,2050.6,2049.6,0.0011]
[1772073635211,0.49500003,2050.4,2049.6,0.0011]
[1772073637510,1.21933375,2050.3,2049.6,0.0011]
[1772073637699,0.49500003,2050.1,2049.6,0.0011]
[1772073639384,4.87665141,2050.6,2049.7,0.01109994]
[1772073639385,2.08900003,2050.6,2049.7,0.01109994]
[1772073639591,2.08900003,2050.6,2049.9,0.00999994]
[1772073640841,1.2190475,2050.8,2049.9,0.00999994]
[1772073640842,0.49500003,2050.8,2049.9,0.00999994]
[1772073641695,0.49500003,2050.6,2050.0,1.21951219]
[1772073642207,4.87590813,2051.1,2050.0,1.22951213]
[1772073642208,0.49500003,2050.8,2050.0,1.22951213]
[1772073643509,0.49500003,2050.8,2050.0,1.21951219]
[1772073643804,0.49500003,2050.6,2049.7,4.88983403]
[1772073644406,0.49500003,2050.6,2049.8,0.00999993]
[1772073645209,0.49500003,2050.6,2049.7,4.8798341]
[1772073645394,0.49500003,2050.6,2049.7,4.88983403]
[1772073645594,0.49500003,2050.6,2050.2,0.0011]
[1772073645906,0.001,2050.4,2050.2,0.0011]
[1772073647637,6.54685624,2051.7,2050.2,0.0011]
[1772073647638,0.49500003,2050.9,2050.2,0.01109993]
[1772073647915,0.49500003,2050.9,2050.3,1.21933375]
[1772073651617,0.49500003,2050.9,2050.3,1.22833368]
[1772073651990,0.49550003,2050.8,2050.3,1.21933375]
[1772073652622,0.49550003,2050.8,2050.2,1.22044955]
[1772073654221,0.47912713,2050.6,2050.2,0.0011]
[1772073656424,0.48731358,2050.8,2050.2,0.0011]
[1772073656592,0.48731358,2050.8,2050.2,0.02647283]
[1772073657195,1.52931358,2051.1,2050.2,0.02647283]
[1772073657390,0.48731358,2051.0,2050.2,0.02647283]
[1772073658528,0.48731358,2051.0,2050.4,0.0011]
[1772073658826,0.001,2050.7,2050.4,0.0011]
[1772073660301,0.48831358,2050.7,2050.4,0.0011]
[1772073660500,0.48676358,2050.5,2050.2,0.0011]
[1772073661006,0.48676358,2050.4,2050.2,0.0011]
[1772073661741,0.48676358,2050.4,2049.9,0.0011]
[1772073661906,0.48676358,2050.4,2049.6,0.0011]
[1772073662103,0.48676358,2050.4,2049.8,0.0011]
[1772073662308,0.48676358,2050.4,2049.7,0.0022]
[1772073663326,0.48676358,2050.2,2049.7,0.0022]
[1772073663507,1.583,2050.5,2049.7,0.02867283]
[1772073663508,2.06976358,2050.5,2049.7,0.02867283]
[1772073663706,0.48676358,2050.4,2049.7,0.02867283]
[1772073664020,1.583,2050.5,2049.7,0.02867283]
[1772073664440,0.48776358,2050.7,2050.0,0.02647283]
[1772073664441,0.001,2050.7,2050.0,0.02647283]
[1772073665432,0.001,2050.7,2050.1,1.2194527]
[1772073665630,0.001,2050.7,2050.2,0.02647283]
[1772073666633,0.001,2050.7,2050.3,0.0011]
[1772073667534,0.001,2050.7,2050.3,1.22043375]
[1772073668632,0.48776358,2050.7,2050.3,0.0011]
[1772073670042,0.48776358,2050.7,2050.0,1.24598502]
[1772073670210,0.48776358,2050.7,2050.1,0.0011]
[1772073670411,0.48676358,2050.6,2050.1,0.0011]
[1772073670637,0.48676358,2050.6,2049.8,1.21960514]
[1772073670832,0.48676358,2050.6,2050.0,0.0011]
[1772073671406,0.48676358,2050.6,2050.1,0.0011]
[1772073671716,0.48676358,2050.4,2050.1,0.0011]
[1772073672614,0.48676358,2050.4,2049.9,0.0011]
[1772073672615,0.48621358,2050.3,2049.9,0.0011]
[1772073673708,0.48621358,2050.2,2049.9,0.0022]
[1772073674118,2.06521358,2050.4,2049.9,0.0022]
[1772073674318,3.28448938,2050.4,2049.9,0.0022]
[1772073674520,0.48621358,2050.3,2049.9,0.0011]
[1772073675846,0.48621358,2050.1,2049.9,0.0011]
[1772073678228,0.48621358,2050.1,2049.9,0.0022]
[1772073678849,1.2194588,2050.1,2049.9,0.0022]
[1772073679149,0.48621358,2050.0,2049.9,0.0011]
[1772073679826,0.48621358,2050.3,2049.9,0.0011]
[1772073680023,0.48621358,2050.3,2049.9,0.0022]
[1772073681150,0.48621358,2050.2,2049.9,0.0022]
[1772073681731,0.48621358,2050.2,2049.7,0.0011]
[1772073681933,0.48511358,2050.0,2049.7,0.0011]
[1772073683348,2.07011358,2050.0,2049.7,0.0011]
[1772073683647,0.48611358,2049.9,2049.7,0.0011]
[1772073684151,0.48511358,2049.8,2049.7,0.0011]
[1772073684451,0.001,2049.9,2049.7,0.0011]
[1772073685023,0.48611358,2049.9,2049.7,0.0011]
[1772073685351,0.48511358,2049.8,2049.7,0.0011]
[1772073687655,0.001,2049.9,2049.7,0.0011]
[1772073690759,0.48611358,2049.9,2049.7,0.0011]
[1772073691860,0.48611358,2049.9,2049.4,0.0011]
[1772073692743,0.48456358,2049.7,2049.4,0.0011]
[1772073693054,0.48556358,2049.9,2049.4,0.0011]
[1772073693752,0.48556358,2049.9,2049.4,0.03197283]
[1772073695023,0.001,2049.9,2049.4,0.03197283]
[1772073695356,0.001,2049.9,2049.6,0.03087283]
[1772073695527,0.001,2049.9,2049.6,0.03197283]
[1772073696353,0.001,2049.9,2049.6,0.0011]
[1772073696354,0.48556358,2049.9,2049.6,0.0011]
[1772073696856,0.001,2049.9,2049.6,0.0011]
[1772073697852,0.48456358,2050.1,2049.6,0.03197283]
[1772073698065,2.07456358,2050.3,2049.6,0.03197283]
[1772073698264,3.29391282,2050.3,2049.6,0.03197283]
[1772073698689,1.59,2050.3,2049.6,0.03197283]
[1772073698847,1.59,2050.3,2049.8,0.03087283]
[1772073699390,0.48556358,2050.5,2049.8,0.03087283]
[1772073699956,0.001,2050.5,2050.0,0.03087283]
[1772073700172,2.07556358,2050.7,2050.0,0.03087283]
[1772073700173,1.591,2050.7,2050.1,0.02987283]
[1772073700767,0.48506358,2050.6,2049.9,1.21957168]
[1772073701669,0.48506358,2050.6,2049.8,1.24947333]
[1772073702061,0.48506358,2050.4,2049.8,1.24947333]
[1772073702259,1.70426103,2050.6,2049.9,0.02987283]
[1772073703545,0.48506358,2050.5,2049.9,0.02987283]
[1772073704178,0.48506358,2050.5,2050.0,1.21951219]
[1772073705907,1.21921622,2050.5,2049.9,1.24939829]
[1772073706188,0.48506358,2050.4,2049.9,1.24939829]
[1772073706756,0.001,2050.7,2050.4,0.02987283]
[1772073706949,0.48506358,2051.2,2050.4,0.02987283]
[1772073707455,1.587,2051.3,2050.7,0.02987283]
[1772073707848,0.48506358,2051.2,2050.2,4.02481119]
[1772073708053,0.48506358,2051.2,2050.3,0.02987283]
[1772073708274,1.587,2051.3,2050.6,0.02987283]
[1772073708469,0.48506358,2051.5,2050.6,0.02987283]
[1772073708871,0.48506358,2051.4,2050.7,1.24896874]
[1772073709356,0.48506358,2051.4,2050.7,1.21909591]
[1772073710199,0.48506358,2051.4,2050.7,1.21794714]
[1772073710603,0.48506358,2051.4,2050.7,1.24781997]
[1772073710772,0.48506358,2051.4,2050.8,0.02987283]
[1772073710978,0.48506358,2051.3,2050.4,0.02987283]
[1772073712875,0.48506358,2051.4,2050.6,0.02987283]
[1772073715881,0.48506358,2051.2,2050.6,0.02987283]
[1772073716218,0.48506358,2051.0,2050.4,0.02987283]
[1772073716516,0.48506358,2051.0,2050.4,1.24913775]
[1772073717553,1.582,2051.1,2050.5,0.02987283]
[1772073718141,1.582,2051.1,2050.7,0.02987283]
[1772073719055,3.28592185,2051.1,2050.5,1.21917208]
[1772073719336,2.06706358,2051.1,2050.5,1.24904491]
[1772073719539,2.06706358,2051.1,2050.6,0.02987283]
[1772073720337,2.06706358,2051.1,2050.6,1.25010514]
[1772073721382,3.28593938,2051.1,2050.6,0.03097283]
[1772073721984,3.28593938,2051.1,2050.6,0.0011]
[1772073721985,0.48506358,2050.9,2050.6,0.0011]
[1772073722148,0.48506358,2050.9,2050.4,0.0011]
[1772073722466,1.7034756,2051.0,2050.4,0.0011]
[1772073722649,2.06651358,2051.0,2050.4,0.03207283]
[1772073723047,0.001,2051.2,2050.9,1.53231803]
[1772073723247,2.8004738,2051.8,2051.0,0.03097283]
[1772073723248,1.582,2051.8,2051.0,0.03097283]
[1772073723456,3.2849651,2051.8,2051.0,0.03097283]
[1772073723771,0.48451358,2051.7,2051.0,0.03097283]
[1772073724062,1.582,2051.8,2051.0,0.03097283]
[1772073724262,1.582,2051.8,2051.2,0.03097283]
[1772073724468,1.582,2051.8,2051.4,0.03097283]
[1772073724848,2.06651358,2051.8,2051.3,1.21873933]
[1772073726641,0.48451358,2051.7,2051.2,1.21875771]
[1772073730041,0.48451358,2051.7,2050.9,4.87590005]
[1772073730042,0.48451358,2051.6,2050.9,4.87587158]
[1772073730371,0.48451358,2051.6,2051.0,0.03097283]
[1772073732070,0.48451358,2051.6,2051.1,1.21885817]
[1772073732972,0.48451358,2051.6,2051.4,0.0011]
[1772073733168,0.001,2052.1,2051.4,0.0011]
[1772073733169,0.001,2052.1,2051.5,1.33097283]
[1772073733369,0.48501358,2053.8,2051.5,1.33097283]
[1772073733370,0.48601358,2053.6,2052.6,1.5013452]
[1772073733570,0.47619393,2053.8,2053.1,0.002]
[1772073733768,0.47619393,2053.8,2052.7,3.05984461]
[1772073733972,0.47619393,2053.8,2052.7,1.21790812]
[1772073734152,0.47619393,2053.8,2052.8,1.211]
[1772073734873,0.47619393,2053.8,2052.7,1.21790812]
[1772073735071,0.47619393,2053.8,2052.9,1.211]
[1772073735275,0.47619393,2053.8,2052.9,1.70501959]
[1772073736056,0.47619393,2053.8,2053.0,1.21773015]
[1772073736578,0.47619393,2053.8,2053.0,1.71174974]
[1772073736787,0.001,2053.9,2053.0,1.71174974]
[1772073736788,0.001,2053.9,2053.3,0.49401959]
[1772073737554,0.001,2053.9,2053.1,2.0933962]
[1772073737555,0.001,2053.9,2053.5,0.49401959]
[1772073737882,0.47619393,2054.3,2053.2,0.49401959]
[1772073738083,0.47619393,2054.3,2053.4,0.49401959]
[1772073738251,0.47619393,2054.3,2053.5,1.71145323]
[1772073740261,0.47619393,2054.3,2053.5,1.71042046]
[1772073740665,0.47619393,2054.3,2053.5,1.21640087]
[1772073740986,0.47619393,2054.2,2053.3,4.87012091]
[1772073741388,0.47619393,2054.2,2053.4,0.49401959]
[1772073742490,0.47619393,2054.2,2053.5,1.21743364]
[1772073742491,0.47619393,2054.1,2053.5,1.21743364]
[1772073742698,0.47619393,2054.1,2053.1,6.08147267]
[1772073742699,0.47619393,2054.1,2053.2,1.21757113]
[1772073743899,0.76335184,2057.3,2055.5,0.57593959]
[1772073744204,0.47619393,2057.4,2056.2,2.58741579]
[1772073744400,0.47619393,2057.4,2057.3,0.07]
[1772073744717,0.47619393,2057.4,2056.1,4.86286714]
[1772073744718,0.47619393,2057.3,2056.0,1.2159533]
[1772073744859,0.47619393,2057.0,2055.9,1.70999304]
[1772073746568,3.78496052,2057.0,2055.9,1.70999304]
[1772073746765,0.45887666,2056.9,2055.9,1.21597345]
[1772073748906,0.45887666,2056.9,2055.7,6.0920498]
[1772073748907,0.45887666,2056.6,2055.7,4.86445484]
[1772073750405,0.45887666,2056.6,2055.4,4.8646939]
[1772073750406,0.45887666,2056.6,2055.4,1.21630826]
[1772073750711,0.45887666,2056.4,2055.4,1.21630826]
[1772073751395,0.45887666,2056.3,2055.4,1.21630826]
[1772073752009,0.45887666,2056.3,2055.1,4.86571022]
[1772073752204,2.0933962,2056.4,2055.1,4.86571022]
[1772073752205,0.45887666,2056.0,2055.1,4.86571022]
[1772073752811,1.67484746,2056.0,2054.9,4.86636685]
[1772073752987,0.49468995,2055.9,2054.9,4.86636685]
[1772073753183,0.49468995,2055.7,2054.6,1.21678185]
[1772073754819,0.49468995,2055.5,2054.6,1.21678185]
[1772073755900,0.49468995,2055.5,2054.6,1.69008117]
[1772073757936,0.49468995,2055.5,2054.8,0.001]
[1772073758993,0.49468995,2055.3,2054.8,0.001]
[1772073759200,0.49468995,2055.3,2054.5,1.21783694]
[1772073759400,0.49468995,2055.3,2054.5,0.001]
[1772073760309,0.49468995,2055.0,2054.5,0.001]
[1772073761527,0.49468995,2054.8,2054.5,0.001]
[1772073761689,0.49468995,2054.7,2054.3,0.001]
[1772073762788,0.49468995,2054.7,2053.8,1.21722349]
[1772073763520,1.7114718,2054.6,2053.7,4.86902695]
[1772073763894,0.49468995,2054.5,2053.7,1.21731508]
[1772073764522,0.49468995,2054.4,2053.5,1.21743364]
[1772073765790,0.49468995,2054.4,2053.4,4.87091859]
[1772073765995,1.71164949,2054.3,2053.4,4.87091859]
[1772073766198,1.71164949,2054.3,2053.4,0.001]
[1772073766199,0.49468995,2054.1,2053.4,0.001]
[1772073767997,0.49468995,2053.9,2053.4,0.001]
[1772073768714,0.49468995,2053.8,2053.4,0.001]
[1772073769123,2.80302335,2054.2,2053.4,0.001]
[1772073770541,2.80302335,2054.2,2053.6,0.001]
[1772073770827,0.46067681,2054.0,2053.4,0.001]
[1772073771931,1.2169451,2054.4,2053.4,0.46500262]
[1772073772105,4.86750882,2054.5,2053.4,0.46500262]
[1772073772106,4.86750882,2054.5,2053.6,0.46400262]
[1772073773319,1.21684108,2054.5,2053.6,0.46400262]
[1772073774540,13.31991148,2055.0,2053.4,4.87073459]
[1772073774541,0.46067681,2055.7,2054.1,0.46400262]
[1772073774742,1.462,2056.7,2053.4,4.87073459]
[1772073774743,0.46067681,2056.3,2054.8,0.46400262]
[1772073774905,2.0933962,2055.7,2054.3,0.46400262]
[1772073775102,0.46067681,2055.5,2054.3,0.46400262]
[1772073777128,1.21630826,2055.4,2054.4,1.71189184]
[1772073778541,1.21628639,2055.5,2054.5,0.49499153]
[1772073779327,1.21628639,2055.5,2054.6,1.71177338]
[1772073782349,3.26057027,2055.6,2054.7,2.58838773]
[1772073783138,0.002,2055.3,2054.7,2.58838773]
[1772073783450,0.002,2055.3,2054.8,1.21666342]
[1772073784113,0.45734748,2055.5,2054.7,1.21667883]
[1772073784331,0.45734748,2055.5,2054.6,1.71174475]
[1772073785834,1.67165574,2055.4,2054.6,1.71174475]
[1772073786849,0.45534748,2055.4,2054.6,1.71174475]
[1772073787837,0.002,2055.5,2054.8,1.21666342]
[1772073788149,0.002,2055.5,2054.8,1.71165495]
[1772073790048,0.45734748,2055.5,2054.8,0.49499153]
[1772073790238,0.45734748,2055.5,2054.5,1.71178327]
[1772073790748,0.45734748,2055.5,2054.5,0.49499153]
[1772073790951,0.45534748,2055.4,2054.1,0.49499153]
[1772073792127,0.45534748,2055.4,2054.2,1.21701879]
[1772073792128,0.45534748,2055.2,2054.2,1.21701879]
[1772073792326,1.21636744,2055.3,2054.2,1.21701879]
[1772073792327,0.45534748,2055.0,2054.2,1.21701879]
[1772073792534,0.45534748,2055.0,2054.1,1.71202644]
[1772073792732,0.45534748,2055.0,2053.9,1.71215248]
[1772073793055,0.45534748,2055.0,2054.0,0.49499153]
[1772073795256,1.21660421,2054.9,2054.1,1.21707803]
[1772073795453,1.67193221,2055.0,2054.2,0.49499153]
[1772073795659,1.67193221,2055.0,2054.4,0.001]
[1772073798060,6.44299074,2055.1,2054.4,0.001]
[1772073798061,2.79349024,2055.1,2054.4,0.49599153]
[1772073798366,2.79349323,2055.1,2054.4,0.49599153]
[1772073798866,1.67374587,2055.3,2054.5,0.49499153]
[1772073799029,1.21839839,2055.3,2054.5,0.49499153]
[1772073799363,1.21839839,2055.3,2055.0,0.49499153]
[1772073799364,0.002,2055.3,2055.0,0.49499153]
[1772073799831,0.002,2055.5,2055.2,0.49499153]
[1772073800265,0.002,2055.8,2055.3,0.49499153]
[1772073801837,2.79174428,2056.4,2055.7,1.71112228]
[1772073802560,0.45534748,2056.3,2055.1,1.71143979]
[1772073802859,0.45534748,2056.3,2055.2,0.49499153]
[1772073803964,1.67118251,2056.2,2055.3,3.20418609]
[1772073804140,1.21581857,2056.3,2055.6,1.98781865]
[1772073804454,1.21581857,2056.3,2055.3,1.21636744]
[1772073804455,0.45534748,2056.2,2055.4,0.49499153]
[1772073805354,1.576,2056.4,2055.4,0.49499153]
[1772073805562,1.576,2056.4,2055.7,0.49499153]
[1772073805772,0.45534748,2056.3,2055.3,1.71135897]
[1772073805927,0.45534748,2056.3,2055.3,0.49499153]
[1772073806133,0.45534748,2056.3,2055.4,1.21630826]
[1772073806134,1.21583503,2056.2,2055.4,1.21630826]
[1772073806464,1.67328553,2056.2,2055.4,1.67045407]
[1772073806760,1.67328553,2056.2,2055.4,3.16328119]
[1772073808259,0.002,2056.1,2055.5,0.45414581]
[1772073808850,0.002,2056.1,2055.4,2.70913538]
[1772073808851,0.002,2056.3,2056.0,1.49282712]
[1772073809051,0.002,2056.3,2055.8,0.45414581]
[1772073810261,0.002,2056.3,2055.4,1.223]
[1772073810262,0.002,2056.3,2055.5,5.31906559]
[1772073810471,0.002,2056.3,2055.5,1.67035107]
[1772073810647,0.4594505,2056.3,2055.5,1.67035107]
[1772073812053,1.6859049,2056.2,2055.5,0.45414581]
[1772073812754,1.6859049,2056.2,2055.5,1.67039362]
[1772073813756,1.21583503,2056.2,2055.5,0.45414581]
[1772073813956,0.47006987,2056.1,2055.5,0.45414581]
[1772073814163,6.44434014,2056.3,2055.5,1.67039436]
[1772073814164,2.79680134,2056.3,2055.5,1.67039436]
[1772073814460,3.26684766,2056.3,2055.5,1.67039436]
[1772073814812,3.26684766,2056.3,2055.5,0.45414581]
[1772073814813,0.47006987,2056.2,2055.5,0.45414581]
[1772073814973,0.47006987,2056.2,2055.4,2.7090786]
[1772073815486,0.47006987,2056.2,2055.4,1.69678013]
[1772073816181,1.21589416,2056.1,2055.4,1.69678013]
[1772073816754,1.68594833,2056.2,2055.4,1.69678013]
[1772073817480,1.68594833,2056.2,2055.4,1.21625148]
[1772073817674,1.68594833,2056.2,2055.5,0.48052865]
[1772073818385,1.68594833,2056.2,2055.5,1.69676847]
[1772073819367,1.68594833,2056.2,2055.5,0.48052865]
[1772073819586,1.68594833,2056.2,2055.5,1.69677183]
[1772073820184,1.68594833,2056.2,2055.5,0.48052865]
[1772073820594,0.002,2056.3,2056.0,0.48052865]
[1772073820760,0.47206987,2056.6,2056.0,0.48052865]
[1772073821166,0.002,2056.6,2056.0,0.48052865]
[1772073822400,0.002,2056.2,2056.0,0.48052865]
[1772073822700,0.002,2056.6,2056.1,1.21589416]
[1772073823065,0.002,2056.5,2056.1,1.21589416]
[1772073823876,0.002,2056.5,2055.9,1.21599122]
[1772073824204,0.47206987,2056.5,2055.9,1.21599122]
[1772073825998,4.86151044,2057.0,2056.3,0.48052865]
[1772073825999,0.47006987,2057.0,2056.3,0.48052865]
[1772073826291,0.47006987,2057.0,2055.9,1.21599122]
[1772073826292,0.47006987,2056.8,2056.0,1.97335577]
[1772073826792,1.68557964,2056.8,2056.1,1.21589416]
[1772073827095,0.47006987,2056.7,2056.1,1.21589416]
[1772073827303,1.68770059,2056.7,2056.1,1.21589416]
[1772073829468,1.21763072,2056.6,2056.2,0.48052865]
[1772073830613,0.002,2057.1,2056.5,0.48052865]
[1772073830903,0.002,2057.1,2056.3,0.48052865]
[1772073830904,0.47006987,2056.9,2056.3,0.48052865]
[1772073831068,0.47006987,2056.9,2056.2,1.225]
[1772073831395,1.21763072,2056.8,2056.2,1.69633287]
[1772073832087,1.21763072,2056.7,2056.2,1.69633287]
[1772073832289,1.68770059,2056.7,2056.0,0.48052865]
[1772073832505,1.21763072,2056.6,2056.0,1.69646764]
[1772073832874,1.68770059,2056.6,2056.0,0.48052865]
[1772073833077,1.68770059,2056.6,2056.0,1.69647707]
[1772073833406,2.90332704,2056.6,2056.0,1.69647707]
[1772073833611,2.90330683,2056.6,2056.0,1.69647707]
[1772073833818,1.68770059,2056.6,2056.0,1.69647707]
[1772073834116,1.68770059,2056.6,2055.9,1.21598648]
[1772073834117,0.47006987,2056.4,2055.9,1.21598648]
[1772073835490,1.21763072,2056.3,2055.9,1.69651513]
[1772073835689,1.68770059,2056.6,2055.9,1.69651513]